Cogmind - Beta 9.3 @@@ ROGUE MODE // 2019.12.19 @ 16:07:59 // Winter2019/RPGLIKE Player: spruce (@macklemurr) Result: Destroyed by P-80 Master with Gamma Rifle Performance ------------- Evolutions (7) 3500 Regions Visited (26) 5200 Robots Destroyed (438) 2190 Value Destroyed (17186) 17186 Prototype IDs (102) 2040 Alien Tech Used (3) 600 Bonus (11460) 11460 TOTAL SCORE: 42176 Bonus ------- High Alert Combat Kills 2454 Follower Combat Kills 2561 Network Hubs Disabled 400 Met Warlord at Base 500 MAIN.C Attacked Warlord 500 Warlord Defense Kill 54 Built Enhanced Grunts 300 Met R17 at Cetus 500 Found Hidden Lab 3000 Met R17 at Research 2000 Pursued by Intercept 1000 Friendly Fire -1809 Cogmind --------- Core Integrity 0/1200 Matter 125/300 Energy 50/700 System Corruption 6% Temperature Cool (0) Movement Flying (107) Ox1 Location -3/Testing Parts ------- > --- POWER (2) -------- Vortex Chain Reactor > --- PROPULSION (6) --- Xenon Bombardment Thruster Cooled Field Propulsion Drive Cooled Field Propulsion Drive Q-thruster Impulse Thruster Array > --- UTILITY (10) ----- Advanced Signal Interpreter Long-range Terrain Scanner Experimental Target Analyzer Improved Overload Amplifier Improved Overload Regulator Reaction Control System Experimental Phase Shifter Improved Energy Mantle Deep Network Scanner Ghost Barrier > --- WEAPON (5) ------- Advanced Variable Charge Gun Warp Cannon Omega Cannon Guided Remote Datajack > --- INVENTORY (4) ---- Improved Particle Charger Thermal Barrier Phasing AFG Dimensional Node Initializer Peak State ------------ > --- POWER ------------ Vortex Chain Reactor > --- PROPULSION ------- Xenon Bombardment Thruster Cooled Field Propulsion Drive Cooled Field Propulsion Drive Q-thruster Impulse Thruster Array > --- UTILITY ---------- Advanced Signal Interpreter Experimental Target Analyzer Improved Particle Charger Improved Overload Amplifier Improved Overload Regulator Reaction Control System Experimental Phase Shifter Improved Energy Mantle Deep Network Scanner Ghost Barrier > --- WEAPON ----------- Advanced Variable Charge Gun Warp Cannon Omega Cannon Guided Remote Datajack > --- INVENTORY -------- Improved Fusion Compressor Thermal Barrier Phasing AFG Dimensional Node Initializer [Rating: 200] Favorites ----------- Power Light Angular Momentum Engine Engine Light Angular Momentum Engine Power Core Light Nuclear Core Reactor Light Antimatter Reactor Propulsion Xenon Bombardment Thruster Treads Enhanced Armored Medium Treads Leg Experimental Flexi-carbon Leg Hover Unit Aerolev Unit Flight Unit Xenon Bombardment Thruster Utility Hacking Suite Device Long-range Terrain Scanner Storage Improved Matter Compressor Processor Advanced Signal Interpreter Hackware Hacking Suite Protection Experimental Core Shielding Weapon Force Rifle Energy Gun Force Rifle Energy Cannon Warp Cannon Ballistic Gun KE Penetrator Ballistic Cannon Omega Cannon Launcher Improved Grenade Launcher Special Weapon Guided Remote Datajack Special Melee Weapon Improved Datajack Build | -11 -10 -10 -9 -9 -8 -8 -7 -7 -7 -7 -6 -6 -6 -6 -6 -6 -5 -5 -5 -5 -4 -4 -4 -4 -3 -3 ------- Run | Scr Mat Min Mat Min Mat Sto Fac Low Low Zio Pro Fac Ext Cet Arc Hub Fac Upp Upp War Pro Fac Arm Lab Res Tes Slots Evolved 19 | 3 . 1 4 3 1 2 . 1 . . . . . . . . . 1 . . . . 1 1 . 1 Power 1 | . . . . 1 . . . . . . . . . . . . . . . . . . . . . . Propulsion 5 | 1 . . . 2 . . . . . . . . . . . . . . . . . . 1 . . 1 Utility 9 | 1 . 1 2 . 1 1 . 1 . . . . . . . . . 1 . . . . . 1 . . Weapon 4 | 1 . . 2 . . 1 . . . . . . . . . . . . . . . . . . . . Parts Attached 235 | 3 5 3 14 5 14 21 9 5 4 4 10 16 11 8 1 6 3 4 . 19 1 5 20 15 7 22 Power 13 | 1 . 2 . 2 3 . . . 1 . . . 1 . . . . . . 1 . . . 2 . . Engine 7 | 1 . 2 . 1 3 . . . . . . . . . . . . . . . . . . . . . Core 1 | . . . . 1 . . . . . . . . . . . . . . . . . . . . . . Reactor 5 | . . . . . . . . . 1 . . . 1 . . . . . . 1 . . . 2 . . Propulsion 33 | . 2 . . 3 4 5 . . . . 1 2 . . . . . . . 2 . 3 8 1 1 1 Treads 1 | . . . . . . . . . . . . . . . . . . . . . . . 1 . . . Leg 1 | . . . . . . . . . . . . . . . . . . . . . . . 1 . . . Wheel . | . . . . . . . . . . . . . . . . . . . . . . . . . . . Hover 1 | . . . . . . 1 . . . . . . . . . . . . . . . . . . . . Flight 30 | . 2 . . 3 4 4 . . . . 1 2 . . . . . . . 2 . 3 6 1 1 1 Utility 85 | . 3 1 5 . 3 1 3 1 1 4 3 3 3 5 1 4 1 4 . 9 1 1 4 8 3 13 Device 55 | . . 1 2 . 2 . . . . 4 2 1 1 3 1 4 1 4 . 6 1 1 4 3 2 12 Storage 2 | . . . . . . . . . . . . . 1 . . . . . . . . . . 1 . . Processor 14 | . 2 . 2 . 1 1 2 1 1 . . 1 . . . . . . . 1 . . . . 1 1 Hackware 12 | . 1 . 1 . . . 1 . . . 1 1 1 2 . . . . . 1 . . . 3 . . Protection 2 | . . . . . . . . . . . . . . . . . . . . 1 . . . 1 . . Artifact . | . . . . . . . . . . . . . . . . . . . . . . . . . . . Weapon 104 | 2 . . 9 . 4 15 6 4 2 . 6 11 7 3 . 2 2 . . 7 . 1 8 4 3 8 Energy Gun 60 | 2 . . 8 . 4 9 3 1 . . 1 9 2 1 . 2 . . . 7 . 1 5 2 1 2 Energy Cannon 9 | . . . . . . . 1 1 . . 2 1 . . . . 1 . . . . . . 1 . 2 Ballistic Gun 12 | . . . 1 . . 2 1 2 1 . 2 . . 1 . . . . . . . . . . 2 . Ballistic Cannon 5 | . . . . . . . . . . . . . . . . . 1 . . . . . . . . 4 Launcher 6 | . . . . . . 2 1 . . . . 1 . . . . . . . . . . 2 . . . Special Weapon 10 | . . . . . . . . . 1 . 1 . 5 1 . . . . . . . . 1 1 . . Impact Weapon . | . . . . . . . . . . . . . . . . . . . . . . . . . . . Slashing Weapon . | . . . . . . . . . . . . . . . . . . . . . . . . . . . Piercing Weapon . | . . . . . . . . . . . . . . . . . . . . . . . . . . . Special Melee Weapon 2 | . . . . . . 2 . . . . . . . . . . . . . . . . . . . . Unidentified Prototypes 66 | . . 1 2 . 3 7 2 . . 2 1 4 1 2 . . 1 . . 10 . 1 6 13 4 6 Parts Lost 5 | . . . . . . . . . . . 3 . . . . 1 . . . . . . . 1 . . Power . | . . . . . . . . . . . . . . . . . . . . . . . . . . . Propulsion . | . . . . . . . . . . . . . . . . . . . . . . . . . . . Utility 1 | . . . . . . . . . . . . . . . . 1 . . . . . . . . . . Weapon 4 | . . . . . . . . . . . 3 . . . . . . . . . . . . 1 . . Highest Loss Streak 1 | . . . . . . . . . . . 1 . . . . 1 . . . . . . . 1 . . Average Slot Usage (%) 93 | . 87 100 99 99 94 92 98 97 100 100 96 93 94 92 93 92 90 88 90 88 80 82 84 88 88 84 Engine 5 | . 14 12 10 6 8 11 11 10 7 5 5 5 5 5 5 5 5 5 5 1 . . . . . . Reactor 3 | . . . . . . . . . 2 5 5 5 4 5 5 5 5 5 5 5 5 5 4 4 4 4 Flight 20 | . 17 25 20 22 25 23 22 21 21 21 21 21 21 21 21 21 21 20 20 19 15 15 15 18 18 18 Device 15 | . . 8 11 14 12 11 11 10 10 10 10 15 15 15 19 19 16 16 20 22 20 22 24 22 22 23 Processor 9 | . 24 12 3 6 6 7 11 12 15 15 14 10 10 8 5 5 5 5 5 8 10 10 9 9 9 8 Hackware 13 | . 2 12 18 14 12 11 14 15 15 15 15 15 15 15 15 15 15 15 15 11 10 10 9 9 13 11 Energy Gun 19 | . 28 25 27 28 25 21 20 17 15 15 8 14 20 21 21 21 21 20 20 19 20 20 19 15 9 3 Ballistic Gun 2 | . . . 6 . . 2 5 7 9 10 11 5 . . . . . . . . . . . . 1 . Naked Turns . | . . . . . . . . . . . . . . . . . . . . . . . . . . . Heaviest Build 108 | 7 7 14 23 28 34 37 38 42 44 44 48 52 49 64 64 64 54 66 66 81 76 80 87 94 94 108 Greatest Support 119 | 13 18 18 23 32 43 43 40 45 45 45 48 51 51 56 56 56 56 66 66 79 79 82 94 94 97 119 Greatest Overweight (x) 2 | . . . 1 . . . . . . . . 1 . 1 1 1 . . . 1 . 1 1 . 2 1 Average Overweight (x) . | . . . . . . . . . . . . . . . . . . . . . . . . . . . Largest Inventory Capacity 4 | 2 2 2 2 2 2 2 2 2 2 3 4 4 4 4 4 4 4 4 4 4 4 4 4 4 4 4 Average Capacity 3 | 2 2 2 2 2 2 2 2 2 2 2 3 4 4 4 4 4 4 4 4 4 4 4 4 4 4 4 Most Carried 4 | . 2 2 2 2 2 2 2 2 2 3 4 4 4 4 4 4 3 4 3 4 4 4 4 4 4 4 Average Carried 2 | . 1 2 1 1 1 1 1 1 2 2 2 4 3 3 3 3 2 3 3 3 3 3 3 3 3 3 Final Capacity 4 | 2 2 2 2 2 2 2 2 2 2 3 4 4 4 4 4 4 4 4 4 4 4 4 4 4 4 4 Final Carried 4 | . 2 2 2 1 1 2 2 2 2 3 4 4 4 4 3 3 3 3 3 4 4 4 4 3 4 4 Class Distribution -------------------- 66% | Wizard-Scout 9% | Hacker-Scout 7% | Scavenger-Scout 4% | Hacker-Mutant 4% | Wizard-Mutant Dominant Class ---------------- Mutant | -10/Materials Hacker-Mutant | -10/Mines Hacker-Gunner | -9/Materials Scavenger-Scout | -9/Mines Hacker-Scout | -8/Materials Hacker-Scout | -8/Storage Wizard-Scout | -7/Factory Wizard-Scout | -7/Lower Caves Wizard-Scout | -7/Lower Caves Wizard-Scout | -7/Zion Wizard-Scout | -6/Proximity Caves Wizard-Scout | -6/Factory Wizard-Scout | -6/Extension Wizard-Scout | -6/Cetus Wizard-Skirmisher | -6/Archives Wizard-Scout | -6/Hub_04(d) Wizard-Scout | -5/Factory Wizard-Scout | -5/Upper Caves Wizard-Scout | -5/Upper Caves Wizard-Scout | -5/Warlord Wizard-Scout | -4/Proximity Caves Wizard-Scout | -4/Factory Wizard-Scout | -4/Armory Wizard-Scout | -4/Lab Wizard-Scout | -3/Research Wizard-Scout | -3/Testing Resources | -11 -10 -10 -9 -9 -8 -8 -7 -7 -7 -7 -6 -6 -6 -6 -6 -6 -5 -5 -5 -5 -4 -4 -4 -4 -3 -3 ----------- Run | Scr Mat Min Mat Min Mat Sto Fac Low Low Zio Pro Fac Ext Cet Arc Hub Fac Upp Upp War Pro Fac Arm Lab Res Tes Matter Collected 3947 | 223 53 30 257 50 140 311 174 184 191 . 819 246 220 85 . 70 30 40 . 190 10 50 96 86 322 70 Remotely . | . . . . . . . . . . . . . . . . . . . . . . . . . . . Salvage Created 19827 | . 520 140 1430 586 1439 789 708 1376 385 . 2044 1514 1876 80 . 696 537 544 679 42 1016 1604 264 86 647 825 Parts 1155 | . 45 15 97 55 87 38 35 61 19 . 107 98 119 11 . 36 35 33 48 2 46 70 23 8 26 41 Haulers Intercepted 10 | . 1 . 3 . 2 1 . . . . 1 2 . . . . . . . . . . . . . . Recyclers Shooed 1 | . . . . . . . . . . . . . . . . . . . . . . . . . . 1 Parts Field Recycled . | . . . . . . . . . . . . . . . . . . . . . . . . . . . Retrieved Matter . | . . . . . . . . . . . . . . . . . . . . . . . . . . . Parts Self-Destructed 297 | . . . . . . . . 27 9 . 77 . . . . . . 36 48 55 45 . . . . . Prevented 87 | . . . . . . . . 38 11 . 30 . . . . . . . 2 6 . . . . . . Kills | -11 -10 -10 -9 -9 -8 -8 -7 -7 -7 -7 -6 -6 -6 -6 -6 -6 -5 -5 -5 -5 -4 -4 -4 -4 -3 -3 ------- Run | Scr Mat Min Mat Min Mat Sto Fac Low Low Zio Pro Fac Ext Cet Arc Hub Fac Upp Upp War Pro Fac Arm Lab Res Tes Combat Hostiles Destroyed 368 | . 14 6 24 28 24 14 15 26 10 . 34 24 25 2 . 8 8 14 21 1 22 20 8 3 7 10 Melee 1 | . . . . . . . . . . . . . . . . . . . . . . . 1 . . . Guns 315 | . 12 5 19 26 21 13 12 22 8 . 30 20 25 2 . 8 7 13 21 1 22 20 6 . . 2 Cannons 18 | . . . . . . . . . . . . . . . . . . . . . . . . 3 7 8 AOE 19 | . 1 . 4 2 3 . . 1 2 . 2 4 . . . . . . . . . . . . . . Classes Destroyed 19 | . 7 . 2 3 2 . . 1 1 . . . 2 . . . . . . . . . 1 . . . Worker 9 | . 2 . 1 . 2 . . . . . . 2 . . . 1 . . . . . 1 . . . . Builder 4 | . 1 . 1 . . . . . . . . 1 . . . 1 . . . . . . . . . . Tunneler 1 | . . . . 1 . . . . . . . . . . . . . . . . . . . . . . Hauler 10 | . 1 . 3 . 2 1 . . . . 1 2 . . . . . . . . . . . . . . Recycler 10 | . . . 2 . 2 . . . . . . 3 1 . . 1 . . . . . . . . . 1 Operator 7 | . 2 . 1 . . 1 . . . . . 1 1 . . . . . . . . . 1 . . . Watcher 24 | . 2 . 5 . 3 . 2 . . . . 1 . 1 . 3 1 . . . . 1 . . 4 1 Swarmer 119 | . 4 4 7 15 5 . 4 6 7 . 10 7 1 2 . . . 5 17 1 16 2 1 . . 5 Saboteur 2 | . . . . . . . . . . . . . . . . . . . . . . . 2 . . . Grunt 143 | . 10 2 10 8 12 7 6 17 1 . 20 11 12 . . 3 2 5 2 . 4 8 . 3 . . Brawler 6 | . . . . . . . . 1 1 . . 1 1 . . . 1 1 . . . . . . . . Duelist 10 | . . . . . 1 1 . . . . 1 2 2 . . . . . 1 . . . 2 . . . Sentry 55 | . . . 7 1 6 6 3 2 . . 2 1 7 . . 5 5 1 1 . 1 4 1 . 2 . Demolisher 1 | . . . . 1 . . . . . . . . . . . . . . . . . . . . . . Specialist 1 | . . . . . . . . . . . . . 1 . . . . . . . . . . . . . Hunter 13 | . . . . . 2 . 2 . . . . 1 . . . . . 2 . . . 4 . . 2 . Programmer 12 | . . . . . . . . . 1 . 1 1 . . . . . . . . 1 2 2 . . 4 Behemoth 1 | . . . . . . . . . . . . . 1 . . . . . . . . . . . . . Tracker 4 | . . . . . . . . . . . . . . . . . . . . . . . . . 3 1 Assembled 3 | . . . . 3 . . . . . . . . . . . . . . . . . . . . . . Wasp 1 | . . . . . . . . . . . 1 . . . . . . . . . . . . . . . Thug 1 | . . . . . . . . . . . . . . 1 . . . . . . . . . . . . Butcher 1 | . . . . . . . . . . . . . 1 . . . . . . . . . . . . . Best Kill Streak 13 | . 13 3 13 7 7 4 4 5 4 . 5 11 8 2 . 4 3 5 9 1 7 5 5 3 2 7 Combat Bots Only 11 | . 7 3 11 7 6 4 4 6 4 . 5 7 8 2 . 2 3 5 9 1 7 5 3 3 2 6 Max Kills in Single Turn 5 | . 2 1 3 3 2 2 1 2 2 . 2 5 2 1 . 3 2 2 2 1 3 2 1 1 1 1 Gunslinging 2 | . 1 . . 2 1 1 . 1 1 . . 1 . . . . 1 1 1 . 1 1 . . . . Exploded 3 | . 1 . 3 1 1 . . 1 1 . 2 3 . . . . . . . . . . . . . . Melee 1 | . . . . . . . . . . . . . . . . . . . . . . . 1 . . . Uniques/NPCs Destroyed . | . . . . . . . . . . . . . . . . . . . . . . . . . . . Combat | -11 -10 -10 -9 -9 -8 -8 -7 -7 -7 -7 -6 -6 -6 -6 -6 -6 -5 -5 -5 -5 -4 -4 -4 -4 -3 -3 -------- Run | Scr Mat Min Mat Min Mat Sto Fac Low Low Zio Pro Fac Ext Cet Arc Hub Fac Upp Upp War Pro Fac Arm Lab Res Tes Damage Taken 15968 | . 475 131 643 791 839 388 555 1142 406 . 1889 932 701 774 109 1000 253 749 164 172 222 834 590 465 665 1079 Core 12745 | . 407 109 518 632 666 314 426 914 325 . 1515 757 556 605 85 793 209 594 126 138 176 659 472 355 529 865 Absorbed by Shields 2145 | . . . . . . . . . . . . . 275 169 13 42 . 20 156 . 149 401 307 202 239 172 Redirected to Core 10914 | . 224 74 419 528 594 260 426 794 285 . 1337 629 480 573 85 695 160 545 119 120 142 563 371 290 442 759 Core Remaining (%) 88 | 100 . 97 . 100 . 100 . . . . 100 . . . . 33 . . . . 90 . . 86 . . Volleys Fired 870 | . 44 12 56 41 50 45 29 38 20 . 76 46 91 17 4 35 21 23 22 3 25 47 23 27 38 37 Largest 5 | . 2 2 4 4 4 4 5 5 5 . 5 4 4 4 4 4 4 4 4 4 4 4 4 4 2 1 Hottest 508 | . 80 80 200 200 200 200 230 230 221 . 221 305 305 305 305 480 320 320 320 320 320 320 508 508 174 144 Shots Fired 2768 | . 88 24 180 125 194 123 128 178 82 . 311 176 267 60 16 112 69 89 88 6 96 160 67 53 39 37 Gun 2648 | . 88 24 180 125 194 121 128 177 79 . 305 176 240 59 16 112 69 89 88 6 96 160 66 38 2 10 Cannon 82 | . . . . . . . . 1 . . 4 . . . . . . . . . . . . 15 35 27 Launcher 2 | . . . . . . 2 . . . . . . . . . . . . . . . . . . . . Special 36 | . . . . . . . . . 3 . 2 . 27 1 . . . . . . . . 1 . 2 . Kinetic 374 | . . . 39 . . 25 29 41 34 . 171 34 . . . . . . . . . . . . . 1 Thermal 1192 | . . . 8 . . 4 . 1 . . 30 106 190 48 12 93 69 89 88 6 96 160 66 53 37 36 Explosive 2 | . . . . . . 2 . . . . . . . . . . . . . . . . . . . . Electromagnetic 1164 | . 88 24 133 125 194 92 99 136 45 . 108 36 50 11 4 19 . . . . . . . . . . Robot Hit Streak 44 | . 10 8 24 8 20 29 44 35 13 . 19 17 30 14 8 19 43 24 21 6 31 23 39 14 13 27 Robot Miss Streak 7 | . 3 2 3 5 5 3 2 5 4 . 7 2 4 2 3 5 1 3 2 . 3 4 1 4 1 1 Penetration Max 1 | . . . . . . . . . . . 1 1 . . . . . . . . . . . . . . Secondary Targets 92 | . 2 . 2 7 8 4 3 8 6 . 10 6 7 1 . 1 1 5 6 1 6 5 3 . . . Max Gunslinging Chain 2 | . 1 . 1 2 2 1 1 2 1 . 1 1 1 1 . 1 1 1 2 1 2 1 1 . . . Shots Hit Robots 1916 | . 55 17 131 71 129 84 93 135 57 . 208 116 210 44 11 77 59 67 59 4 57 110 50 30 17 25 Core Hits 770 | . 26 6 64 37 55 36 33 50 19 . 71 60 64 15 3 26 22 20 27 1 27 52 16 14 13 13 Critical Hits 116 | . . . . 1 2 . . 2 2 . 14 7 17 4 . 2 3 6 4 1 14 15 4 4 7 7 Critical Kills 50 | . . . . 1 2 . . 2 . . 3 4 5 1 . 1 . 2 1 1 7 8 1 2 5 4 Critical Parts Destroyed 56 | . . . . . . . . . 2 . 11 3 9 2 . 1 2 3 3 . 5 6 2 2 2 3 Melee Attacks 4 | . . . . . . 1 3 . . . . . . . . . . . . . . . . . . . Impact . | . . . . . . . . . . . . . . . . . . . . . . . . . . . Slashing . | . . . . . . . . . . . . . . . . . . . . . . . . . . . Piercing . | . . . . . . . . . . . . . . . . . . . . . . . . . . . Sneak Attacks 4 | . . . . . . 1 3 . . . . . . . . . . . . . . . . . . . Combat Hostiles 2 | . . . . . . . 2 . . . . . . . . . . . . . . . . . . . Follow-up Attacks . | . . . . . . . . . . . . . . . . . . . . . . . . . . . Damage Inflicted 46188 | . 830 228 1998 1243 2384 1435 1752 2364 997 . 4309 3864 4158 1087 299 2577 1719 1792 1411 92 1437 3045 1775 1440 1719 2233 Guns 39255 | . 730 228 1799 1037 2082 1274 1661 2212 757 . 4113 2989 4104 1087 299 1824 1719 1792 1411 92 1437 3045 1775 834 40 914 Cannons 3686 | . . . . . . . . . . . 82 . . . . . . . . . . . . 606 1679 1319 Explosions 3237 | . 90 . 199 206 302 161 91 152 240 . 114 875 54 . . 753 . . . . . . . . . . Melee . | . . . . . . . . . . . . . . . . . . . . . . . . . . . Ramming 10 | . 10 . . . . . . . . . . . . . . . . . . . . . . . . . Kinetic 5125 | . . . 324 . . 125 276 503 355 . 2709 741 . . . . . . . . . . . . . 92 Thermal 26762 | . 90 . 303 206 302 161 91 152 240 . 425 2346 3223 870 263 1519 1719 1792 1411 92 1437 3045 1775 1440 1719 2141 Explosive . | . . . . . . . . . . . . . . . . . . . . . . . . . . . Electromagnetic 14291 | . 730 228 1371 1037 2082 1149 1385 1709 402 . 1175 777 935 217 36 1058 . . . . . . . . . . Impact . | . . . . . . . . . . . . . . . . . . . . . . . . . . . Slashing . | . . . . . . . . . . . . . . . . . . . . . . . . . . . Piercing . | . . . . . . . . . . . . . . . . . . . . . . . . . . . Highest Corruption 9 | . . . . . . 1 . . . . . . . . . 9 . . . 2 . . 1 8 1 5 Average Corruption 2 | . . . . . . 1 . . . . . . . . . 6 . . . 1 . . 1 6 1 1 Corruption Purged . | . . . . . . . . . . . . . . . . . . . . . . . . . . . Effects 26 | . . . . . . 2 . . . . . . . . . 6 . . . . . . 1 13 1 3 Message Errors 4 | . . . . . . . . . . . . . . . . 1 . . . . . . . 1 . 2 Matter Fused 5 | . . . . . . . . . . . . . . . . . . . . . . . . 4 . 1 Heat Flow Errors 1 | . . . . . . . . . . . . . . . . . . . . . . . . 1 . . Energy Discharges 1 | . . . . . . 1 . . . . . . . . . . . . . . . . . . . . Parts Rejected 2 | . . . . . . . . . . . . . . . . 1 . . . . . . . 1 . . Data Loss (minor) 2 | . . . . . . . . . . . . . . . . 2 . . . . . . . . . . Data Loss (major) 2 | . . . . . . . . . . . . . . . . 1 . . . . . . . 1 . . Targeting Errors 8 | . . . . . . 1 . . . . . . . . . . . . . . . . 1 5 1 . Weapon Failures 1 | . . . . . . . . . . . . . . . . 1 . . . . . . . . . . Overload Shots 31 | . . . . . . . . . . . . . . . . 6 . . . 2 1 . 7 5 . 10 Overflow Damage 409 | . . . . . . . 5 . 3 . . 166 . . . 121 . . . . . . . 30 47 37 Projectiles 114 | . . . . . . . . . . . . . . . . . . . . . . . . 30 47 37 Explosions 295 | . . . . . . . 5 . 3 . . 166 . . . 121 . . . . . . . . . . Melee . | . . . . . . . . . . . . . . . . . . . . . . . . . . . Knockbacks 1 | . . . . . . . . . . . . . . . . . . . . . . . . . . 1 Impact . | . . . . . . . . . . . . . . . . . . . . . . . . . . . Kinetic 1 | . . . . . . . . . . . . . . . . . . . . . . . . . . 1 Secondary . | . . . . . . . . . . . . . . . . . . . . . . . . . . . Self-Inflicted Damage 925 | . 27 . 124 68 101 111 . 38 58 . . 164 33 . . 95 . . . . . 106 . . . . Shots 22 | . 1 . 4 2 3 3 . 1 1 . . 3 1 . . 1 . . . . . 2 . . . . Rammed 1 | . 1 . . . . . . . . . . . . . . . . . . . . . . . . . Targets Rammed 1 | . 1 . . . . . . . . . . . . . . . . . . . . . . . . . Kicked . | . . . . . . . . . . . . . . . . . . . . . . . . . . . Crushed . | . . . . . . . . . . . . . . . . . . . . . . . . . . . Highest Temperature 568 | . 121 108 272 246 467 182 252 213 54 . 90 568 412 268 108 275 182 271 210 80 65 123 426 237 7 . Average Temperature 85 | . 27 44 83 68 128 65 109 58 20 . 26 162 107 89 49 81 54 103 73 50 31 41 131 92 7 . Received Heat Transfer 2679 | . 189 60 159 132 207 93 66 315 . . 525 186 208 39 . 151 54 71 21 . 19 90 90 4 . . Effects 31 | . . . 1 2 3 . . . . . . 17 1 2 . . . 2 . . . . 3 . . . Shutdowns 8 | . . . . . 1 . . . . . . 6 1 . . . . . . . . . . . . . Energy Bleed 2 | . . . 1 . 1 . . . . . . . . . . . . . . . . . . . . . Interference 16 | . . . . 2 . . . . . . . 8 . 2 . . . 2 . . . . 2 . . . Damage (minor) 4 | . . . . . 1 . . . . . . 2 . . . . . . . . . . 1 . . . Damage (major) 1 | . . . . . . . . . . . . 1 . . . . . . . . . . . . . . Siege Activations . | . . . . . . . . . . . . . . . . . . . . . . . . . . . Robots Corrupted 15 | . 1 1 2 . . 1 4 3 . . 2 . . . . 1 . . . . . . . . . . Combat Hostiles 12 | . 1 1 1 . . 1 3 3 . . 2 . . . . . . . . . . . . . . . Parts Fried 89 | . 1 2 7 3 13 7 11 9 3 . 9 10 5 . . 9 . . . . . . . . . . Impact Corruptions . | . . . . . . . . . . . . . . . . . . . . . . . . . . . Robots Melted 4 | . . . . . . . . . . . . 1 . . . . 1 1 . . . . 1 . . . Combat Hostiles 3 | . . . . . . . . . . . . . . . . . 1 1 . . . . 1 . . . Parts Melted 65 | . . . 1 . . . . . . . . 4 11 . . 3 6 8 4 . 6 13 3 . 3 3 Heat Transferred 32263 | . 100 . 622 350 350 250 100 200 200 . 655 3005 4787 1332 444 1998 2183 2183 2072 148 2072 3865 1722 1288 1110 1227 Parts Sabotaged 7 | . . . . . . . . . . . . . 3 . . . . . . . . . 4 . . . Parts Stolen . | . . . . . . . . . . . . . . . . . . . . . . . . . . . Parts Stripped . | . . . . . . . . . . . . . . . . . . . . . . . . . . . Power Chain Reactions 29 | . 2 . 4 4 5 3 1 2 3 . 1 2 1 . . 1 . . . . . . . . . . Missiles Intercepted . | . . . . . . . . . . . . . . . . . . . . . . . . . . . Alert | -11 -10 -10 -9 -9 -8 -8 -7 -7 -7 -7 -6 -6 -6 -6 -6 -6 -5 -5 -5 -5 -4 -4 -4 -4 -3 -3 ------- Run | Scr Mat Min Mat Min Mat Sto Fac Low Low Zio Pro Fac Ext Cet Arc Hub Fac Upp Upp War Pro Fac Arm Lab Res Tes Peak Influence 1161 | . 576 379 908 854 879 639 677 . . . . 691 779 542 406 1106 635 . . . . 1161 741 . 260 243 Average Influence 422 | . 365 309 516 671 436 416 435 . . . . 370 440 334 376 650 443 . . . . 474 606 . 78 130 Maximum Alert Level 4 | . 2 1 3 3 3 2 2 . . . . 2 3 2 2 4 2 . . . . 4 3 . 1 1 Low Security (%) 19 | 100 19 . 21 . . 10 . . . . . 33 11 7 . 7 13 . . . . . . . 93 73 Level 1 27 | . 25 100 10 8 48 17 34 . . . . 18 20 75 21 6 13 . . . . 71 . . 6 26 Level 2 40 | . 55 . 44 53 40 71 65 . . . . 47 59 16 78 36 73 . . . . 2 58 . . . Level 3 11 | . . . 23 38 10 . . . . . . . 9 . . 43 . . . . . 18 41 . . . Level 4 . | . . . . . . . . . . . . . . . . 5 . . . . . 7 . . . . Level 5 . | . . . . . . . . . . . . . . . . . . . . . . . . . . . High Security . | . . . . . . . . . . . . . . . . . . . . . . . . . . . Max Security . | . . . . . . . . . . . . . . . . . . . . . . . . . . . Squads Dispatched 58 | . 5 . 5 . 5 4 6 . . . . 5 5 . . 3 2 . . . . 3 2 . 8 5 Investigation 17 | . 3 . 4 . 2 2 4 . . . . 1 1 . . . . . . . . . . . . . Extermination 2 | . . . . . . . . . . . . . . . . . . . . . . 1 1 . . . Reinforcement 20 | . 2 . 1 . . 2 2 . . . . 1 2 . . 2 1 . . . . 2 1 . 3 1 Assault 2 | . . . . . . . . . . . . . 2 . . . . . . . . . . . . . Garrison 10 | . . . . . 3 . . . . . . 3 . . . 1 1 . . . . . . . . 2 Intercept 7 | . . . . . . . . . . . . . . . . . . . . . . . . . 5 2 Construction Impeded 1 | . . . . . . . . . . . . . 1 . . . . . . . . . . . . . Haulers Reinforced 3 | . . . . . . . . . . . . 1 . . . . . . . . . 1 . . 1 . Stealth | -11 -10 -10 -9 -9 -8 -8 -7 -7 -7 -7 -6 -6 -6 -6 -6 -6 -5 -5 -5 -5 -4 -4 -4 -4 -3 -3 --------- Run | Scr Mat Min Mat Min Mat Sto Fac Low Low Zio Pro Fac Ext Cet Arc Hub Fac Upp Upp War Pro Fac Arm Lab Res Tes Distress Signals 31 | . 4 . 3 . 2 3 . . . . . . 1 2 . 3 . . . 2 . 1 1 . 8 1 Communications Jammed . | . . . . . . . . . . . . . . . . . . . . . . . . . . . Distress Signals . | . . . . . . . . . . . . . . . . . . . . . . . . . . . Times Spotted 592 | . 23 8 33 30 33 26 23 38 11 . 45 31 50 15 2 44 11 13 22 10 22 31 45 4 8 14 Peak Tracking Total 24 | . 6 3 4 4 5 6 5 11 3 . 7 5 6 5 1 15 3 5 5 5 5 7 24 4 5 5 Tactical Retreats 36 | . 2 . . 2 2 . 1 5 1 . 6 . 3 . . 4 . . 3 . 1 . 5 . . 1 Traps | -11 -10 -10 -9 -9 -8 -8 -7 -7 -7 -7 -6 -6 -6 -6 -6 -6 -5 -5 -5 -5 -4 -4 -4 -4 -3 -3 ------- Run | Scr Mat Min Mat Min Mat Sto Fac Low Low Zio Pro Fac Ext Cet Arc Hub Fac Upp Upp War Pro Fac Arm Lab Res Tes Traps Triggered 10 | . . . 1 . . 1 3 . . . . . 4 . . . . . . . . 1 . . . . Indirectly . | . . . . . . . . . . . . . . . . . . . . . . . . . . . Trap Hack Attempts 4 | . . . . . . 4 . . . . . . . . . . . . . . . . . . . . Triggered . | . . . . . . . . . . . . . . . . . . . . . . . . . . . Disarmed 14 | . . . . . . . . . . . . 4 . . . . . . . . . . . . 10 . Reprogrammed 7 | . . . . . . 3 . . . . . . . . . . 4 . . . . . . . . . Reused . | . . . . . . . . . . . . . . . . . . . . . . . . . . . Traps Extracted . | . . . . . . . . . . . . . . . . . . . . . . . . . . . Installed 1 | . . . . 1 . . . . . . . . . . . . . . . . . . . . . . Triggered 18 | . . . . . . . . . 1 . . . . . . . . . 2 13 2 . . . . . Machines | -11 -10 -10 -9 -9 -8 -8 -7 -7 -7 -7 -6 -6 -6 -6 -6 -6 -5 -5 -5 -5 -4 -4 -4 -4 -3 -3 ---------- Run | Scr Mat Min Mat Min Mat Sto Fac Low Low Zio Pro Fac Ext Cet Arc Hub Fac Upp Upp War Pro Fac Arm Lab Res Tes Machines Disabled 54 | . 1 . 1 . 3 5 . 1 . . 1 8 2 1 . 13 . 1 . 1 1 8 1 4 . 2 Max in Single Turn 9 | . 1 . 1 . 1 1 . 1 . . 1 6 1 . . 9 . 1 . 1 1 2 1 2 . 1 Garrison Access 11 | . . . . . 1 1 . . . . . 2 . . . 1 . . . . . 2 . . 3 1 Network Hub 2 | . . . . . . . . . . . . . . . . 2 . . . . . . . . . . Machines Sabotaged 1 | . 1 . . . . . . . . . . . . . . . . . . . . . . . . . Garrisons Compromised . | . . . . . . . . . . . . . . . . . . . . . . . . . . . Overloaded Fab Kills . | . . . . . . . . . . . . . . . . . . . . . . . . . . . Fab Network Shutdowns 1 | . . . . . . . . . . . . . . . . . . . . . . 1 . . . . Hacking | -11 -10 -10 -9 -9 -8 -8 -7 -7 -7 -7 -6 -6 -6 -6 -6 -6 -5 -5 -5 -5 -4 -4 -4 -4 -3 -3 --------- Run | Scr Mat Min Mat Min Mat Sto Fac Low Low Zio Pro Fac Ext Cet Arc Hub Fac Upp Upp War Pro Fac Arm Lab Res Tes Machines Accessed 101 | . 6 . 6 . 6 8 12 1 . 1 1 7 10 . . 4 4 1 . 4 2 8 3 2 11 4 Terminals 62 | . 5 . 4 . 3 5 6 1 . . 1 5 9 . . 2 3 . . . 1 4 3 . 7 3 Fabricators 4 | . . . . . . . 2 . . . . . . . . . . . . . . 1 . . 1 . Repair Stations . | . . . . . . . . . . . . . . . . . . . . . . . . . . . Recycling Units 10 | . 1 . 2 . 2 2 2 . . . . . 1 . . . . . . . . . . . . . Scanalyzers 2 | . . . . . . . 1 . . . . . . . . . . . . . . 1 . . . . Garrison Access 14 | . . . . . 1 1 1 . . . . 2 . . . 2 1 . . . . 2 . . 3 1 Total Hacks 371 | . 14 . 11 . 27 21 30 4 . 2 7 60 30 . . 15 30 1 . 10 8 20 10 2 50 19 Successful 259 | . 5 . 6 . 19 18 16 4 . 2 7 44 19 . . 11 21 1 . 10 8 11 6 2 35 14 Failed 110 | . 9 . 4 . 8 3 14 . . . . 15 11 . . 4 9 . . . . 9 4 . 15 5 Catastrophic 11 | . 1 . . . . . . . . . . 1 3 . . . . . . . . 3 1 . 2 . Database Lockouts 3 | . . . 1 . . . . . . . . 2 . . . . . . . . . . . . . . Manual 237 | . 17 . 10 . 23 14 14 . . . 3 45 22 1 1 13 17 . . . 2 13 7 . 22 13 Terminals 287 | . 13 . 9 . 19 14 18 4 . . 7 48 29 . . 11 25 . . . 7 14 10 . 43 16 Fabricators 8 | . . . . . . . 3 . . . . . . . . . . . . . . 2 . . 3 . Repair Stations . | . . . . . . . . . . . . . . . . . . . . . . . . . . . Recycling Units 14 | . 1 . 2 . 3 3 4 . . . . . 1 . . . . . . . . . . . . . Scanalyzers 2 | . . . . . . . 1 . . . . . . . . . . . . . . 1 . . . . Garrison Access 44 | . . . . . 5 4 4 . . . . 12 . . . 4 5 . . . . 3 . . 4 3 Terminal Hacks 187 | . 1 . 4 . 13 10 7 4 . 2 7 33 14 . . 9 14 1 . 10 8 3 5 2 29 11 Record 28 | . . . . . 1 . . 4 . . 4 . . . . . . . . 8 6 . . 2 2 1 Part Schematic 13 | . . . . . 1 3 . . . 2 . 2 1 . . . . . . . . 1 . . 3 . Robot Schematic 1 | . . . . . . 1 . . . . . . . . . . . . . . . . . . . . Robot Analysis 14 | . 1 . 2 . 2 1 1 . . . . . . . . . . . . . . 1 2 . 4 . Prototype ID Bank 16 | . . . . . . . . . . . . 13 . . . . . . . . . . . . 2 1 Open Door 9 | . . . . . . . . . . . . 1 4 . . . . 1 . 2 . . 1 . . . Branch Access Points 5 | . . . . . . . 1 . . . . 1 . . . . 1 . . . . 1 . . 1 . Terminal Index 3 | . . . . . . . 1 . . . . . . . . . 1 . . . . . . . 1 . Fabricator Index 3 | . . . . . 1 . 1 . . . . . . . . . . . . . . . . . 1 . Recycling Unit Index 2 | . . . 1 . . . . . . . . . . . . . . . . . . . . . . 1 Scanalyzer Index 1 | . . . . . . . . . . . . . . . . . . . . . . . . . . 1 Garrison Index 2 | . . . . . . . . . . . . . . . . 1 . . . . . . . . 1 . Alert Level 33 | . . . . . 3 3 1 . . . . 6 4 . . 3 4 . . . 1 . . . 6 2 Unreport Threat 32 | . . . . . 5 2 1 . . . 3 4 5 . . 4 4 . . . 1 . 1 . 1 1 Locate Traps 5 | . . . . . . . . . . . . 1 . . . 1 1 . . . . . . . 2 . Disarm Traps 3 | . . . . . . . . . . . . 1 . . . . . . . . . . . . 2 . Reprogram Traps 1 | . . . . . . . . . . . . . . . . . 1 . . . . . . . . . Dispatch Records 1 | . . . . . . . . . . . . . . . . . . . . . . . . . . 1 Patrol Status 1 | . . . . . . . . . . . . 1 . . . . . . . . . . . . . . Transport Status 1 | . . . . . . . . . . . . 1 . . . . . . . . . . . . . . Reinforcement Status 1 | . . . . . . . . . . . . . . . . . 1 . . . . . . . . . Recall Investigation 1 | . . . 1 . . . . . . . . . . . . . . . . . . . . . . . Recall Reinforcements 1 | . . . . . . . . . . . . . . . . . 1 . . . . . . . . . Hauler Manifests 3 | . . . . . . . 1 . . . . 2 . . . . . . . . . . . . . . Registered Components 1 | . . . . . . . . . . . . . . . . . . . . . . . . . . 1 Registered Prototypes 2 | . . . . . . . . . . . . . . . . . . . . . . . . . 1 1 Zone Layout 4 | . . . . . . . . . . . . . . . . . . . . . . . 1 . 2 1 Fabricator Hacks 7 | . . . . . . . 3 . . . . . . . . . . . . . . 2 . . 2 . Network Status 1 | . . . . . . . 1 . . . . . . . . . . . . . . . . . . . Load Schematic 3 | . . . . . . . 1 . . . . . . . . . . . . . . 1 . . 1 . Build 3 | . . . . . . . 1 . . . . . . . . . . . . . . 1 . . 1 . Repair Station Hacks . | . . . . . . . . . . . . . . . . . . . . . . . . . . . Recycling Unit Hacks 3 | . . . . . 1 1 1 . . . . . . . . . . . . . . . . . . . Retrieve Components 3 | . . . . . 1 1 1 . . . . . . . . . . . . . . . . . . . Scanalyzer 1 | . . . . . . . . . . . . . . . . . . . . . . 1 . . . . Insert Component 1 | . . . . . . . . . . . . . . . . . . . . . . 1 . . . . Garrison Access Hacks 12 | . . . . . 1 2 . . . . . 2 . . . 1 . . . . . 2 . . 3 1 Seal Access 11 | . . . . . 1 1 . . . . . 2 . . . 1 . . . . . 2 . . 3 1 Coupler Status 1 | . . . . . . 1 . . . . . . . . . . . . . . . . . . . . Unauthorized Hacks 119 | . 11 . 4 . 10 11 14 . . . . 21 10 . . 4 17 . . . . 7 4 . 2 4 Terminals 21 | . 3 . . . . 1 . . . . . 4 4 . . . 4 . . . . 3 1 . 1 . Track 3 | . 1 . . . . . . . . . . . 1 . . . . . . . . . . . 1 . Assimilate 7 | . . . . . . 1 . . . . . 2 . . . . 2 . . . . 2 . . . . Botnet 4 | . . . . . . . . . . . . 1 1 . . . 1 . . . . . 1 . . . Disrupt 1 | . . . . . . . . . . . . . 1 . . . . . . . . . . . . . Operators 5 | . 1 . . . . . . . . . . 1 1 . . . 1 . . . . 1 . . . . Sabotage 1 | . 1 . . . . . . . . . . . . . . . . . . . . . . . . . Fabricators . | . . . . . . . . . . . . . . . . . . . . . . . . . . . Repair Stations . | . . . . . . . . . . . . . . . . . . . . . . . . . . . Recycling Units 10 | . 1 . 2 . 2 2 2 . . . . . 1 . . . . . . . . . . . . . Tunnel 10 | . 1 . 2 . 2 2 2 . . . . . 1 . . . . . . . . . . . . . Scanalyzers 1 | . . . . . . . 1 . . . . . . . . . . . . . . . . . . . Extract 1 | . . . . . . . 1 . . . . . . . . . . . . . . . . . . . Garrison Access 17 | . . . . . 2 2 2 . . . . 5 . . . 1 3 . . . . . . . . 2 Restock 2 | . . . . . . 1 . . . . . 1 . . . . . . . . . . . . . . Redirect 2 | . . . . . . . . . . . . 1 . . . . 1 . . . . . . . . . Reprogram 7 | . . . . . 1 . 1 . . . . 2 . . . 1 1 . . . . . . . . 1 Watchers 6 | . . . . . 1 1 1 . . . . 1 . . . . 1 . . . . . . . . 1 Data Cores Recovered 3 | . . . 1 . . . . . . . . 1 1 . . . . . . . . . . . . . Used 1 | . . . . . . . . . . . . . 1 . . . . . . . . . . . . . Hacking Detections 51 | . 4 . 2 . 4 5 8 1 . . 1 3 5 1 . 2 3 . . . 1 3 1 . 5 2 Full Trace Events 1 | . 1 . . . . . . . . . . . . . . . . . . . . . . . . . Feedback Events . | . . . . . . . . . . . . . . . . . . . . . . . . . . . Feedback Blocked . | . . . . . . . . . . . . . . . . . . . . . . . . . . . Robot Schematics Acquired 1 | . . . . . . 1 . . . . . . . . . . . . . . . . . . . . Robots Built . | . . . . . . . . . . . . . . . . . . . . . . . . . . . Matter . | . . . . . . . . . . . . . . . . . . . . . . . . . . . Time . | . . . . . . . . . . . . . . . . . . . . . . . . . . . Total Robot Build Rating . | . . . . . . . . . . . . . . . . . . . . . . . . . . . Part Schematics Acquired 15 | . . . . . 1 3 2 . . 2 . 2 1 . . . . . . . . 1 . . 3 . Parts Built 5 | . . . . . . . 2 . . . . . . . . . . . . . . 2 . . 1 . Matter 753 | . . . . . . . 146 . . . . . . . . . . . . . . 256 . . 351 . Time 263 | . . . . . . . 73 . . . . . . . . . . . . . . 128 . . 62 . Total Part Build Rating 29 | . . . . . . . 6 . . . . . . . . . . . . . . 16 . . 7 . Parts Repaired . | . . . . . . . . . . . . . . . . . . . . . . . . . . . Time . | . . . . . . . . . . . . . . . . . . . . . . . . . . . Parts Recycled . | . . . . . . . . . . . . . . . . . . . . . . . . . . . Recycled Matter . | . . . . . . . . . . . . . . . . . . . . . . . . . . . Retrieved Matter . | . . . . . . . . . . . . . . . . . . . . . . . . . . . Retrieved Components 27 | . . . . . 7 10 10 . . . . . . . . . . . . . . . . . . . Parts Scanalyzed . | . . . . . . . . . . . . . . . . . . . . . . . . . . . Part Schematics Acquired . | . . . . . . . . . . . . . . . . . . . . . . . . . . . Parts Damaged . | . . . . . . . . . . . . . . . . . . . . . . . . . . . Bothacking | -11 -10 -10 -9 -9 -8 -8 -7 -7 -7 -7 -6 -6 -6 -6 -6 -6 -5 -5 -5 -5 -4 -4 -4 -4 -3 -3 ------------ Run | Scr Mat Min Mat Min Mat Sto Fac Low Low Zio Pro Fac Ext Cet Arc Hub Fac Upp Upp War Pro Fac Arm Lab Res Tes Used RIF Installer . | . . . . . . . . . . . . . . . . . . . . . . . . . . . Robots Hacked 8 | . . . . . . 1 1 . . . . . 3 1 . . . . . . . . . . 2 . Non-combat 2 | . . . . . . . 1 . . . . . 1 . . . . . . . . . . . . . Combat 6 | . . . . . . 1 . . . . . . 2 1 . . . . . . . . . . 2 . Robot Hacks Applied 8 | . . . . . . 1 1 . . . . . 3 1 . . . . . . . . . . 2 . parse_system 6 | . . . . . . 1 . . . . . . 2 1 . . . . . . . . . . 2 . find_chute 1 | . . . . . . . 1 . . . . . . . . . . . . . . . . . . . find_recycling 1 | . . . . . . . . . . . . . 1 . . . . . . . . . . . . . Relay Couplers Released 1 | . . . . . . . . . . . . 1 . . . . . . . . . . . . . . Programmers 1 | . . . . . . . . . . . . 1 . . . . . . . . . . . . . . Robots Rewired 20 | . . . 1 . . . 2 . 1 . 1 . 14 . . . . . . . . . 1 . . . Allies Hacked . | . . . . . . . . . . . . . . . . . . . . . . . . . . . Hacks Repelled 1 | . . . . . . . . . . . . . . . . . . . . . . 1 . . . . Allies | -11 -10 -10 -9 -9 -8 -8 -7 -7 -7 -7 -6 -6 -6 -6 -6 -6 -5 -5 -5 -5 -4 -4 -4 -4 -3 -3 -------- Run | Scr Mat Min Mat Min Mat Sto Fac Low Low Zio Pro Fac Ext Cet Arc Hub Fac Upp Upp War Pro Fac Arm Lab Res Tes Total Allies 53 | . . 2 1 3 2 3 5 . 1 2 1 3 18 5 . . 2 . . . . 2 1 . . 2 Largest Group 10 | . . 2 1 3 3 4 4 3 1 3 3 2 10 10 7 7 2 1 . . . 2 1 . . 2 Highest-Rated Group 574 | . . 45 7 40 40 141 99 52 16 50 50 64 392 574 531 531 42 26 . . . 20 60 . . 94 Highest-Rated Ally 156 | . . 31 7 16 16 99 99 20 16 20 30 32 156 140 94 94 26 26 . . . 10 60 . . 47 Total Orders 2 | . . . 2 . . . . . . . . . . . . . . . . . . . . . . . DROP 1 | . . . 1 . . . . . . . . . . . . . . . . . . . . . . . COLLECT 1 | . . . 1 . . . . . . . . . . . . . . . . . . . . . . . Ally Attacks 331 | . . 5 . . 30 19 12 13 . . 10 5 95 72 12 58 . . . . . . . . . . Total Damage 7730 | . . 64 . . 270 749 265 131 . . 124 214 2179 1387 304 2043 . . . . . . . . . . Kills 70 | . . 1 . . 4 10 2 1 . . 1 . 19 13 4 15 . . . . . . . . . . Allies Corrupted . | . . . . . . . . . . . . . . . . . . . . . . . . . . . Allies Melted 1 | . . . . . . . . . . . . 1 . . . . . . . . . . . . . . Intel | -11 -10 -10 -9 -9 -8 -8 -7 -7 -7 -7 -6 -6 -6 -6 -6 -6 -5 -5 -5 -5 -4 -4 -4 -4 -3 -3 ------- Run | Scr Mat Min Mat Min Mat Sto Fac Low Low Zio Pro Fac Ext Cet Arc Hub Fac Upp Upp War Pro Fac Arm Lab Res Tes Robot Analysis Total 13 | . 1 . 2 . 2 1 1 . . . . . . . . . . . . . . 1 2 . 3 . Derelict Logs Recovered 12 | . . 1 . 1 . . . 2 1 1 1 . . . . . . 2 2 . 1 . . . . . Drone Launches . | . . . . . . . . . . . . . . . . . . . . . . . . . . . Drone Recoveries . | . . . . . . . . . . . . . . . . . . . . . . . . . . . Exploration | -11 -10 -10 -9 -9 -8 -8 -7 -7 -7 -7 -6 -6 -6 -6 -6 -6 -5 -5 -5 -5 -4 -4 -4 -4 -3 -3 ------------- Run | Scr Mat Min Mat Min Mat Sto Fac Low Low Zio Pro Fac Ext Cet Arc Hub Fac Upp Upp War Pro Fac Arm Lab Res Tes Turns Passed 12959 | 26 392 301 748 709 648 516 510 607 420 400 761 1003 862 354 92 518 323 396 265 629 260 679 260 276 668 336 Spaces Moved 17537 | 44 389 567 815 922 621 783 879 886 601 709 836 1647 826 214 64 906 470 601 458 995 430 669 389 375 939 502 Core 267 | 44 56 . 140 . . . . . . . . . . . . . . . . . . . . . 27 . Treads . | . . . . . . . . . . . . . . . . . . . . . . . . . . . Legs . | . . . . . . . . . . . . . . . . . . . . . . . . . . . Wheels . | . . . . . . . . . . . . . . . . . . . . . . . . . . . Hover . | . . . . . . . . . . . . . . . . . . . . . . . . . . . Flight 17270 | . 333 567 675 922 621 783 879 886 601 709 836 1647 826 214 64 906 470 601 458 995 430 669 389 375 912 502 Fastest Speed 21 | 50 37 37 37 31 31 28 28 28 28 28 28 29 31 31 31 31 31 31 31 28 30 30 27 27 27 21 Average Speed 32 | 50 39 37 47 32 31 29 28 28 28 28 28 29 31 34 93 32 31 31 31 40 30 30 30 27 31 30 Slowest Speed 150 | 50 50 37 117 37 34 34 28 28 28 28 29 106 31 107 107 107 31 31 31 101 30 117 117 27 150 107 Overloaded Moves 7 | . . . . . . . . . . . . . . . . . . . . . . . . . . 7 Propulsion Burnouts . | . . . . . . . . . . . . . . . . . . . . . . . . . . . Robots Hopped 178 | . 1 5 16 18 5 20 10 1 . . . 19 20 . . 26 5 1 . 4 . 1 7 2 11 6 Cave-ins Triggered . | . . . . . . . . . . . . . . . . . . . . . . . . . . . Teleports 1 | . . . . . . . . . . . . . . . . . . . . . . . . 1 . . Exploration Rate (%) 62 | 3 65 91 67 95 61 93 30 84 86 78 80 27 88 55 72 77 19 72 75 89 66 18 37 99 30 35 Regions Visited 26 Branch Regions 18 Pre-discovered Areas 11 | . 1 1 2 . 2 2 2 . . . . . 1 . . . . . . . . . . . . . Known Exits Taken 23 | . . . 1 1 1 1 1 1 1 1 1 1 1 1 1 1 1 1 1 1 1 1 1 1 1 . Unknown Exits Taken 3 | 1 1 1 . . . . . . . . . . . . . . . . . . . . . . . . Scrap Searched 15 | . . 1 . 2 . . . 4 . . 2 . . . . . . 3 2 . 1 . . . . . Spaces Dug 16 | . . . . . . . . . . . . . . . . 5 1 . . 1 . . 3 . 4 2 Terrain Destroyed 692 | . 15 . 10 22 16 35 . 16 26 . 31 30 9 . . 365 4 17 5 1 5 65 13 . 4 3 Melee . | . . . . . . . . . . . . . . . . . . . . . . . . . . . Projectile 124 | . . . . . . . . 1 20 . 25 5 . . . 12 4 17 5 1 5 9 13 . 4 3 AOE 568 | . 15 . 10 22 16 35 . 15 6 . 6 25 9 . . 353 . . . . . 56 . . . . Actions | -11 -10 -10 -9 -9 -8 -8 -7 -7 -7 -7 -6 -6 -6 -6 -6 -6 -5 -5 -5 -5 -4 -4 -4 -4 -3 -3 --------- Run | Scr Mat Min Mat Min Mat Sto Fac Low Low Zio Pro Fac Ext Cet Arc Hub Fac Upp Upp War Pro Fac Arm Lab Res Tes Total 22816 | 46 535 628 1025 1220 949 968 1068 1155 804 909 1175 2028 1242 453 85 1027 595 751 525 1213 500 1034 476 502 1261 642 Wait 3295 | . 69 42 110 224 208 76 86 173 163 193 166 257 217 179 2 83 76 77 36 174 28 266 20 50 259 61 Move 17183 | 43 386 556 784 886 610 744 858 883 600 708 835 1609 796 213 63 858 459 598 457 989 429 666 376 370 916 491 Hop 150 | . 1 5 14 17 5 18 10 1 . . . 18 9 . . 21 5 1 . 1 . 1 5 2 11 5 Pick Up 25 | . 2 . 2 1 1 4 3 1 . . 3 . . 1 . 1 1 . . . 1 1 2 . 1 . Fast Attach 187 | 3 5 3 13 5 10 13 7 3 2 4 7 15 5 2 . 2 3 2 . 17 . 3 17 18 7 21 Attach 24 | . . . . . 1 2 . 1 . . 3 . 5 2 1 2 . 1 . 2 1 1 2 . . . Detach 21 | . . . . . 1 1 . . . 1 3 . 5 2 . 1 . 1 . 3 1 . 1 . . 1 Swap 27 | . . . 1 . 3 6 2 1 2 . . 1 1 4 . 2 . 1 . . . 1 1 . . 1 Drop 176 | . 1 2 11 4 14 15 9 3 2 3 6 15 2 4 . 1 5 1 . 18 1 4 14 13 8 20 Fire 870 | . 44 12 56 41 50 45 29 38 20 . 76 46 91 17 4 35 21 23 22 3 25 47 23 27 38 37 Melee 4 | . . . . . . 1 3 . . . . . . . . . . . . . . . . . . . Ram 1 | . 1 . . . . . . . . . . . . . . . . . . . . . . . . . Kick . | . . . . . . . . . . . . . . . . . . . . . . . . . . . Crush . | . . . . . . . . . . . . . . . . . . . . . . . . . . . Escape Stasis 143 | . . . . . . 18 36 . . . . . 72 . . . . . . . . 17 . . . . Rewire 9 | . . . 9 . . . . . . . . . . . . . . . . . . . . . . . Trap 5 | . . . . 1 . 4 . . . . . . . . . . . . . . . . . . . . Miscellaneous 696 | . 26 8 25 41 46 21 25 51 15 . 76 67 39 29 15 21 25 46 10 6 14 27 15 22 21 5 Route ------- -11/Scrapyard -10/Materials (discovered 2 exits: *Mat / [*Min]) -10/Mines -9/Materials (discovered 3 exits: *Mat / *Min x2) -9/Mines (discovered 3 exits: *Mat x2 / *Exi) -8/Materials (discovered 3 exits: *Fac x2 / *Sto) -8/Storage (discovered 2 exits: *Fac / [Rec]) -7/Factory (discovered 4 exits: *Fac x2 / *Low x2) -7/Lower Caves -7/Lower Caves (discovered 2 exits: *Fac / *Zio) -7/Zion (discovered 2 exits: [Dee] / *Pro) -6/Proximity Caves -6/Factory (discovered 7 exits: *Fac x3 / *Low x2 / *Ext x2) -6/Extension (discovered 3 exits: *Fac x2 / *Cet) -6/Cetus (discovered 2 exits: *Fac / *Arc) -6/Archives (discovered 3 exits: Fac / *Hub x2) -6/Hub_04(d) (discovered 4 exits: *Fac x4) -5/Factory (discovered 2 exits: *Upp x2) -5/Upper Caves -5/Upper Caves -5/Warlord -4/Proximity Caves -4/Factory (discovered 3 exits: Upp x2 / *Arm) -4/Armory (discovered 2 exits: Res / *Lab) -4/Lab -3/Research (discovered 2 exits: *Tes x2) -3/Testing (discovered 1 exit: [Res]) History --------- Turn | Location | Event 1 | -11/Scrapyard | Upgraded with Propulsion slot (x1) 1 | -11/Scrapyard | Upgraded with Utility slot (x1) 1 | -11/Scrapyard | Upgraded with Weapon slot (x1) 5 | -11/Scrapyard | Discovered new exit (range 16) 27 | -11/Scrapyard | Entered Materials 148 | -10/Materials | Destroyed 7 combat bots 203 | -10/Materials | Reached level 2 224 | -10/Materials | Discovered new exit (range 16) 306 | -10/Materials | Build established: Mutant 391 | -10/Materials | Discovered new exit (range 11) 419 | -10/Materials | Entered Mines 459 | -10/Mines | Learned 2 Materials zone layouts 462 | -10/Mines | Found a damaged Exp. Sensor Array with a note attached 490 | -10/Mines | Reached level 3 505 | -10/Mines | Upgraded with Utility slot (x1) 505 | -10/Mines | Found Prototype Device 505 | -10/Mines | Identified Exp. Sensor Array 629 | -10/Mines | Discovered new exit (range 12) 669 | -10/Mines | Learned location of Storage (-8) 677 | -10/Mines | Build established: Hacker-Mutant 720 | -10/Mines | Entered Materials 721 | -9/Materials | Identified exit to Mines 722 | -9/Materials | Reached level 4 846 | -9/Materials | Central database locked down 944 | -9/Materials | Upgraded with Weapon slot (x2) 958 | -9/Materials | Reached level 5 995 | -9/Materials | Discovered new exit (range 4) 1067 | -9/Materials | Destroyed 11 combat bots 1200 | -9/Materials | Reached level 6 1221 | -9/Materials | Discovered exit to Mines (range 13) 1253 | -9/Materials | Build established: Hacker-Gunner 1331 | -9/Materials | Upgraded with Utility slot (x2) 1468 | -9/Materials | Entered Mines 1470 | -9/Mines | Reached level 7 1498 | -9/Mines | Met a Derelict bent on vengeance 1606 | -9/Mines | Reached level 8 1643 | -9/Mines | Build established: Scavenger-Scout 1651 | -9/Mines | Destroyed 7 combat bots 1710 | -9/Mines | Discovered new exit (range 4) 1739 | -9/Mines | Upgraded with Power slot (x1) 1739 | -9/Mines | Upgraded with Propulsion slot (x2) 1756 | -9/Mines | Deemed a non-threat by the Exiles lab entrance 1756 | -9/Mines | Discovered new exit (range 5) 1858 | -9/Mines | Received a Rocket Launcher from a helpful Derelict 1871 | -9/Mines | Discovered new exit (range 10) 1872 | -9/Mines | Assembled infested the area 1877 | -9/Mines | Assisted by a Guerilla fighting off Assembled 2042 | -9/Mines | Found a hidden stash of uninstalled traps 2061 | -9/Mines | Assisted by bots powering up and referring to "LRC-V3" 2111 | -9/Mines | Identified exit to Exiles 2145 | -9/Mines | Identified exit to Materials 2177 | -9/Mines | Entered Materials 2177 | -8/Materials | Accompanied by 3 allies 2178 | -8/Materials | Identified exit to Factory 2179 | -8/Materials | Reached level 9 2200 | -8/Materials | Reached level 10 2221 | -8/Materials | Discovered new exit (range 5) 2232 | -8/Materials | Garrison activated, responded to threat 2287 | -8/Materials | Identified exit to Storage 2305 | -8/Materials | Reached level 11 2344 | -8/Materials | Upgraded with Utility slot (x1) 2440 | -8/Materials | Discovered exit to Factory (range 14) 2548 | -8/Materials | Reached level 12 2634 | -8/Materials | Build established: Hacker-Scout 2825 | -8/Materials | Entered Storage 2825 | -8/Storage | Accompanied by 1 ally 2827 | -8/Storage | Met 01-MTF 2912 | -8/Storage | Discovered new exit (range 4) 2940 | -8/Storage | Reached level 13 3128 | -8/Storage | Upgraded with Utility slot (x1) 3128 | -8/Storage | Upgraded with Weapon slot (x1) 3147 | -8/Storage | Discovered exit to Factory (range 23) 3341 | -8/Storage | Entered Factory 3341 | -7/Factory | Accompanied by 1 ally 3343 | -7/Factory | Reached level 14 3346 | -7/Factory | 01-MTF left 3449 | -7/Factory | Reached level 15 3469 | -7/Factory | Identified exit to Lower Caves 3561 | -7/Factory | Discovered new exit (range 4) 3581 | -7/Factory | Identified exit to Factory 3592 | -7/Factory | Found Prototype Launcher 3592 | -7/Factory | Identified Rocket Array 3595 | -7/Factory | Discovered exit to Factory (range 18) 3700 | -7/Factory | Fabricated Adv. Signal Interpreter? 3822 | -7/Factory | Build established: Wizard-Scout 3851 | -7/Factory | Entered Lower Caves 3851 | -7/Lower Caves | Accompanied by 4 allies 3856 | -7/Lower Caves | Reached level 16 3880 | -7/Lower Caves | Learned Factory stockpile data 3904 | -7/Lower Caves | Upgraded with Utility slot (x1) 3984 | -7/Lower Caves | Core integrity fell below 50% 4044 | -7/Lower Caves | Core integrity fell below 20% 4088 | -7/Lower Caves | Identified exit to Lower Caves 4088 | -7/Lower Caves | Learned location of 1 exit from Lower Caves 4088 | -7/Lower Caves | Learned Armory garrison access intel 4101 | -7/Lower Caves | Attracted the attention of an 0b10 base 4446 | -7/Lower Caves | Learned Factory security intel 4458 | -7/Lower Caves | Entered another Lower Caves area 4459 | -7/Lower Caves | Discovered exit to Factory (range 16) 4459 | -7/Lower Caves | Identified exit to Zion 4637 | -7/Lower Caves | Reached level 17 4657 | -7/Lower Caves | Learned Factory security intel 4878 | -7/Lower Caves | Entered Zion 4878 | -7/Zion | Accompanied by 1 ally 4893 | -7/Zion | Discovered new exit (range 16) 4953 | -7/Zion | Found Prototype Device 4953 | -7/Zion | Identified Mobile Refinery Mk. CCLXVII 4975 | -7/Zion | Gained Derelict followers 4995 | -7/Zion | Discovered new exit (range 22) 5009 | -7/Zion | Found Prototype Device 5009 | -7/Zion | Identified Phasing AFG 5129 | -7/Zion | Identified exit to Proximity Caves 5278 | -7/Zion | Entered Proximity Caves 5278 | -6/Proximity Caves | Accompanied by 3 allies 5281 | -6/Proximity Caves | Learned Factory trap positions 5375 | -6/Proximity Caves | Attracted the attention of an 0b10 checkpoint 5383 | -6/Proximity Caves | Reached level 18 5473 | -6/Proximity Caves | Attracted the attention of an 0b10 base 5594 | -6/Proximity Caves | Learned Research security intel 5975 | -6/Proximity Caves | Reached level 19 6039 | -6/Proximity Caves | Entered Factory 6040 | -6/Factory | Identified exit to Factory 6040 | -6/Factory | Identified exit to Extension 6041 | -6/Factory | Loaded intel: 72 trap records 6125 | -6/Factory | Discovered exit to Extension (range 7) 6132 | -6/Factory | Discovered new exit (range 12) 6136 | -6/Factory | Found Prototype Processor 6136 | -6/Factory | Identified Exp. Targeting Computer 6330 | -6/Factory | Identified exit to Lower Caves 6330 | -6/Factory | Central database locked down 6459 | -6/Factory | Garrison activated, responded to threat 6494 | -6/Factory | Destroyed 7 combat bots 6598 | -6/Factory | Garrison activated, responded to threat 6694 | -6/Factory | Reached level 20 6971 | -6/Factory | Found Prototype Launcher 6971 | -6/Factory | Identified Scatter Rocket Array 7042 | -6/Factory | Entered Extension 7044 | -6/Extension | Disrupted transfer network 7065 | -6/Extension | Rescued a captive Derelict 7263 | -6/Extension | Destroyed 8 combat bots 7271 | -6/Extension | Rescued a captive Derelict 7275 | -6/Extension | Rescued a captive Derelict 7319 | -6/Extension | Rescued A7 7392 | -6/Extension | First assault squad dispatched 7538 | -6/Extension | Spotted B-75 Beast 7542 | -6/Extension | Discovered exit to Factory (range 21) 7559 | -6/Extension | Destroyed B-75 Beast 7569 | -6/Extension | Spotted B-75 Beast 7581 | -6/Extension | Allies destroyed B-75 Beast 7643 | -6/Extension | Reached level 21 7678 | -6/Extension | Rescued a captive Derelict 7679 | -6/Extension | Rescued a captive Derelict 7849 | -6/Extension | Discovered new exit (range 14) 7849 | -6/Extension | Discovered exit to Factory (range 18) 7878 | -6/Extension | Identified exit to Cetus 7904 | -6/Extension | Entered Cetus 7904 | -6/Cetus | Accompanied by 10 allies 7909 | -6/Cetus | Acquired a Cetus Manufacturing Module code from A7 7910 | -6/Cetus | Spotted Cetus Guard 7910 | -6/Cetus | Spotted Cetus Guard 7919 | -6/Cetus | Allies destroyed Cetus Guard 7919 | -6/Cetus | Spotted Cetus Guard 7919 | -6/Cetus | Spotted Cetus Guard 7932 | -6/Cetus | Allies destroyed Cetus Guard 7936 | -6/Cetus | Allies destroyed Cetus Guard 7936 | -6/Cetus | Allies destroyed Cetus Guard 7938 | -6/Cetus | Extracted ID and sensor layout for unrecognized location from A7's data core 8007 | -6/Cetus | Started Cetus Manufacturing Module 8025 | -6/Cetus | Discovered new exit (range 22) 8032 | -6/Cetus | Manufactured an Enhanced Grunt 8034 | -6/Cetus | Core integrity fell below 50% 8057 | -6/Cetus | Manufactured an Enhanced Grunt 8082 | -6/Cetus | Manufactured an Enhanced Grunt 8107 | -6/Cetus | Manufactured an Enhanced Grunt 8132 | -6/Cetus | Manufactured an Enhanced Grunt 8185 | -6/Cetus | Spotted Cetus Guard 8185 | -6/Cetus | Spotted Cetus Guard 8189 | -6/Cetus | Spotted Cetus Guard 8191 | -6/Cetus | Spotted Cetus Guard 8192 | -6/Cetus | Discovered exit to Factory (range 22) 8200 | -6/Cetus | Allies destroyed Cetus Guard 8200 | -6/Cetus | Allies destroyed Cetus Guard 8202 | -6/Cetus | Allies destroyed Cetus Guard 8206 | -6/Cetus | Allies destroyed Cetus Guard 8212 | -6/Cetus | Met Revision 17 8222 | -6/Cetus | Identified exit to Archives 8258 | -6/Cetus | Entered Archives 8258 | -6/Archives | Accompanied by 7 allies 8262 | -6/Archives | Discovered exit to Factory (range 23) 8269 | -6/Archives | Discovered new exit (range 23) 8284 | -6/Archives | Unable to access archive contents 8302 | -6/Archives | Unable to access archive contents 8323 | -6/Archives | Discovered new exit (range 21) 8344 | -6/Archives | Identified exit to Hub_04(d) 8350 | -6/Archives | Entered Hub_04(d) 8350 | -6/Hub_04(d) | Accompanied by 7 allies 8415 | -6/Hub_04(d) | Reached level 22 8472 | -6/Hub_04(d) | Discovered exit to Factory (range 15) 8481 | -6/Hub_04(d) | Discovered exit to Factory (range 24) 8487 | -6/Hub_04(d) | Garrison activated, responded to threat 8518 | -6/Hub_04(d) | Discovered exit to Factory (range 21) 8638 | -6/Hub_04(d) | Discovered exit to Factory (range 19) 8700 | -6/Hub_04(d) | Network Hub disabled 8700 | -6/Hub_04(d) | Network Hub disabled 8712 | -6/Hub_04(d) | Spotted Lightning 8712 | -6/Hub_04(d) | Spotted Lightning 8731 | -6/Hub_04(d) | Spotted Lightning 8731 | -6/Hub_04(d) | Spotted Lightning 8752 | -6/Hub_04(d) | Spotted Lightning 8752 | -6/Hub_04(d) | Spotted Lightning 8752 | -6/Hub_04(d) | Spotted Lightning 8761 | -6/Hub_04(d) | Spotted Lightning 8762 | -6/Hub_04(d) | Spotted Lightning 8858 | -6/Hub_04(d) | Disrupted transfer network 8868 | -6/Hub_04(d) | Entered Factory 8869 | -5/Factory | Identified exit to Upper Caves 8869 | -5/Factory | Core integrity fell below 50% 9183 | -5/Factory | Garrison activated, responded to threat 9186 | -5/Factory | Reached level 23 9191 | -5/Factory | Entered Upper Caves 9191 | -5/Upper Caves | Accompanied by 1 ally 9257 | -5/Upper Caves | Identified exit to Upper Caves 9296 | -5/Upper Caves | Attracted the attention of an 0b10 outpost 9392 | -5/Upper Caves | Upgraded with Utility slot (x1) 9587 | -5/Upper Caves | Entered another Upper Caves area 9620 | -5/Upper Caves | Attracted the attention of an 0b10 checkpoint 9655 | -5/Upper Caves | Destroyed 9 combat bots 9719 | -5/Upper Caves | Learned Factory stockpile data 9724 | -5/Upper Caves | Learned 4 Factory zone layouts 9777 | -5/Upper Caves | Spotted B-75 Beast 9794 | -5/Upper Caves | Discovered new exit (range 23) 9823 | -5/Upper Caves | Encountered a Warlord checkpoint 9852 | -5/Upper Caves | Identified exit to Warlord 9852 | -5/Upper Caves | Entered Warlord 9859 | -5/Warlord | Discovered new exit (range 21) 9863 | -5/Warlord | System corruption cleaned by Quarantine Array 9969 | -5/Warlord | Received a Watcher feed algorithm from an ecstatic Tinkerer 9985 | -5/Warlord | Visited the Vortex Lab 9987 | -5/Warlord | Found Prototype Energy Gun 9987 | -5/Warlord | Identified Vortex Rifle 10005 | -5/Warlord | Warlord's base attacked by MAIN.C 10028 | -5/Warlord | Found Prototype Energy Gun 10028 | -5/Warlord | Identified Plasma Storm 10076 | -5/Warlord | Met Warlord 10085 | -5/Warlord | Found Prototype Device 10085 | -5/Warlord | Identified Exp. Cloaking Device 10088 | -5/Warlord | Found Prototype Device 10088 | -5/Warlord | Identified Thermal Barrier 10091 | -5/Warlord | Found Prototype Processor 10091 | -5/Warlord | Identified Exp. Target Analyzer 10093 | -5/Warlord | Found Prototype Hackware 10093 | -5/Warlord | Identified Ghost Barrier 10105 | -5/Warlord | Found Prototype Reactor 10105 | -5/Warlord | Identified Vortex Chain Reactor 10304 | -5/Warlord | Opened side exit 10355 | -5/Warlord | Warlord forces counterattacked 10418 | -5/Warlord | Spotted Striker 10464 | -5/Warlord | Spotted Executioner 10481 | -5/Warlord | Identified exit to Proximity Caves 10481 | -5/Warlord | Entered Proximity Caves 10483 | -4/Proximity Caves | Reached level 24 10540 | -4/Proximity Caves | Attracted the attention of an 0b10 base 10566 | -4/Proximity Caves | Learned Research garrison access intel 10566 | -4/Proximity Caves | Learned Extension stockpile data 10573 | -4/Proximity Caves | Destroyed 7 combat bots 10582 | -4/Proximity Caves | Attracted the attention of an 0b10 checkpoint 10590 | -4/Proximity Caves | Identified exit to Factory 10671 | -4/Proximity Caves | Reached level 25 10693 | -4/Proximity Caves | Spotted B-86 Titan 10702 | -4/Proximity Caves | Found Alien Artifact 10741 | -4/Proximity Caves | Entered Factory 10844 | -4/Factory | Identified exit to Upper Caves 10844 | -4/Factory | Identified exit to Armory 10863 | -4/Factory | Identified Dimensional Node Initializer 11097 | -4/Factory | Fabricated Q-thruster (x2) 11231 | -4/Factory | Local fabrication network quarantined 11302 | -4/Factory | Reached level 26 11420 | -4/Factory | Entered Armory 11539 | -4/Armory | Discovered new exit (range 20) 11632 | -4/Armory | Discovered new exit (range 5) 11661 | -4/Armory | Found Tesla Bomb Launcher 11663 | -4/Armory | Upgraded with Propulsion slot (x1) 11665 | -4/Armory | Found Prototype Launcher 11665 | -4/Armory | Identified Com. Tesla Bomb Launcher 11679 | -4/Armory | Identified exit to Lab 11680 | -4/Armory | Entered Lab 11680 | -4/Lab | Discovered new exit (range 9) 11682 | -4/Lab | Identified exit to Research 11683 | -4/Lab | Hidden lab's door opened automatically 11683 | -4/Lab | Sensor layout match revealed 11684 | -4/Lab | Gained access to the hidden lab's interior 11684 | -4/Lab | Reached level 27 11684 | -4/Lab | Unable to decrypt terminal 11685 | -4/Lab | Unable to decrypt terminal 11686 | -4/Lab | Detected by scanners 11692 | -4/Lab | Unable to decrypt terminal 11696 | -4/Lab | Confronted by A5 11696 | -4/Lab | Core integrity fell below 50% 11740 | -4/Lab | Disabled Active System Cloaker 11747 | -4/Lab | MAIN.C forces arrive to investigate 11748 | -4/Lab | Found Prototype Special Weapon 11748 | -4/Lab | Identified Gui. Remote Datajack 11764 | -4/Lab | Found Prototype Energy Gun 11764 | -4/Lab | Identified Hyp. EM Gauss Rifle 11767 | -4/Lab | Found Prototype Energy Cannon 11767 | -4/Lab | Identified Warp Cannon 11770 | -4/Lab | Found Prototype Hackware 11770 | -4/Lab | Identified Deep Network Scanner 11789 | -4/Lab | Core integrity fell below 20% 11861 | -4/Lab | Upgraded with Utility slot (x1) 11881 | -4/Lab | Found Prototype Hackware 11881 | -4/Lab | Identified Exp. System Shield 11892 | -4/Lab | Found Alien Artifact 11892 | -4/Lab | Identified Core Regenerator 11892 | -4/Lab | Used Core Regenerator, restored core integrity (+250) 11895 | -4/Lab | Found Alien Artifact 11895 | -4/Lab | Identified Integrated Reactor 11895 | -4/Lab | Installed Integrated Reactor, increased core energy generation (+2%) 11900 | -4/Lab | Found Alien Artifact 11900 | -4/Lab | Identified Transdimensional Reconstructor 11900 | -4/Lab | Warped through subspace 11910 | -4/Lab | Found Prototype Hackware 11910 | -4/Lab | Identified Exp. Hacking Suite 11956 | -4/Lab | Entered Research 11958 | -3/Research | Loaded intel: 4 garrison access locations 12123 | -3/Research | Fabricated Cld. Field Propulsion Drive (x1) 12156 | -3/Research | Revision forces began assault on 0b10 12213 | -3/Research | Reached level 28 12225 | -3/Research | Intercept squad dispatched 12246 | -3/Research | Spotted Tracker 12258 | -3/Research | Destroyed Tracker 12305 | -3/Research | Intercept squad dispatched 12324 | -3/Research | Met up with Revision 17++ 12330 | -3/Research | Spotted Tracker 12335 | -3/Research | Destroyed Tracker 12339 | -3/Research | Spotted Tracker 12340 | -3/Research | Destroyed Tracker 12363 | -3/Research | Found Prototype Device 12363 | -3/Research | Identified Exp. Phase Shifter 12439 | -3/Research | Identified exit to Testing 12624 | -3/Research | Entered Testing 12637 | -3/Testing | Found Prototype Processor 12637 | -3/Testing | Identified Exp. Melee Analysis Suite 12648 | -3/Testing | Found Prototype Ballistic Cannon 12648 | -3/Testing | Identified Omega Cannon 12678 | -3/Testing | Found Prototype Energy Cannon 12678 | -3/Testing | Identified Imp. Potential Cannon 12696 | -3/Testing | Core integrity fell below 50% 12703 | -3/Testing | Garrison activated, responded to threat 12724 | -3/Testing | Core integrity fell below 20% 12737 | -3/Testing | Reached level 29 12816 | -3/Testing | Found Prototype Energy Gun 12816 | -3/Testing | Identified Warp Gun 12827 | -3/Testing | Discovered new exit (range 17) 12842 | -3/Testing | Found Prototype Device 12842 | -3/Testing | Identified Exp. ECM Suite 12877 | -3/Testing | Upgraded with Propulsion slot (x1) 12896 | -3/Testing | Intercept squad dispatched 12913 | -3/Testing | Spotted Tracker 12916 | -3/Testing | Spotted Combat Programmer 12919 | -3/Testing | Destroyed Tracker 12960 | -3/Testing | Destroyed by P-80 Master with Gamma Rifle Last Messages --------------- Tracker: "THREAT CONFIRMED. DEPLOY COMBAT PROGRAMMER." 12915_ Cld. Field Propulsion Drive temporarily disabled. 12916_ ALERT: Hostiles spotted, dispatching reinforcements to Terminal T002. 12917_ Impulse Thruster Array temporarily disabled. 12919_ Tracker destroyed. 12923_ Destroyed Gamma Rifle. 12925_ Destroyed Lgt. Particle Reactor. 12927_ Destroyed Adv. Heat Sink. 12929_ Destroyed Sml. Battery. 12931_ Destroyed Imp. Antigrav System. 12933_ Gamma Rifle melted. 12933_ Mic. Fission Core melted. 12933_ Adv. Heat Sink melted. 12933_ P-80 Master destroyed. 12943_ Upgraded: Core Integrity (+100) 12945_ System corrupted: Matter fused (-5). 12951_ Door malfunctions. 12955_ Penetrated by EMDS Slug. 12958_ Combat Programmer knocked back. Map ----- +----------------------------------------------------+ | ##### # # # ######## ### | | ##### # # # ######## ### | | ##### # """ """ # + ######## ### | | ##### # """ """ # ####+##### ######## ### | | ##### # """ """ # ## ###+###########+##### | | ##### # # ## # + | | ##### # "T" ####### # ##### ##### | | ##### # """ #######""" # o ""##### ##### | | ##### #################""" # """ ""##### ##### | | ##### #################""" # """ T"##### ##?## | | ################# # """ ""##### ##### | | """#################### ""##### ##### | | T"#################### ##### ##### | | """########################+######### ##### | | ######################## ##### | | " " # * ############### # " " | | "G" # ### !###### < % + " " | | """ # ### ###### g!! # " " | | # ### ################/#### "? | | + # # ########### u R!!% # "" | | #### # ### | !#####! #g"""""g # """ | | # # ### ##### # """"" ##### | | + + #####+######## ! !# """"" ##### | | "" ### # ### p###### # ##### | | "" ### #####+###### T" # # !!! ##### | | S" ### "" @ p # !! ##### | | "" #########+##+### # # !! ##### | | "" ##### ## ###### ############### | | "" #?### ############# [ ############### | | ?##### * ############# ############### | | #?##?### ############# ############### | | ##?##?###########################################? | | | | | | | | | | | | | | | | | | | | | | | | | | | | | | | | | | | | | +----------------------------------------------------+ Best States ------------- Heat Dissipation 115 Energy Generation 75 Energy Capacity 700 Matter Stores 300 Matter Capacity 300 Sight Range 20 Robot Scan Range 46 Terrain Scan Range 24 Terrain Scan Density 810 Power Amplification 40 Resistance: TH 50 Power Shielding 90 Phase Shifting 20 Evasion (%) 96 Targeting Accuracy 10 Target Analysis 12 Energy Filtering 50 Particle Charging 20 Overload Amplification 75 Overload Regulation 60 Salvage Targeting 4 Offensive Hacking 61 Defensive Hacking 49 Item Schematics ----------------- Adv. Signal Interpreter | -8/Materials | Hacked Magnetic Acceleration Cannon | -8/Storage | Hacked Adv. Targeting Computer | -8/Storage | Hacked Thermal Converter | -8/Storage | Hacked Lightning Gun | -7/Factory | Extracted Imp. Field Recycling Unit | -7/Factory | Extracted Hvy. Riot Gun | -7/Zion | Free Barrage Gun | -7/Zion | Free Reaction Control System | -6/Factory | Hacked Exp. Signal Interpreter | -6/Factory | Hacked Imp. Hacking Suite | -6/Extension | Hacked Q-thruster | -4/Factory | Hacked Quantum Reactor | -3/Research | Hacked Enh. Quantum Rifle | -3/Research | Hacked Cld. Field Propulsion Drive | -3/Research | Hacked Robot Schematics ------------------ B-36 Bruiser | -8/Storage | Hacked Fabricated ------------ Adv. Signal Interpreter | x2 | -7/Factory Q-thruster | x2 | -4/Factory Cld. Field Propulsion Drive | x1 | -3/Research Alien Tech Used ----------------- Core Regenerator Integrated Reactor Transdimensional Reconstructor Achievements -------------- Gunslinger Revolutionary Research Challenges ------------ None RPGLIKE | -11 -10 -10 -9 -9 -8 -8 -7 -7 -7 -7 -6 -6 -6 -6 -6 -6 -5 -5 -5 -5 -4 -4 -4 -4 -3 -3 --------- Run | Scr Mat Min Mat Min Mat Sto Fac Low Low Zio Pro Fac Ext Cet Arc Hub Fac Upp Upp War Pro Fac Arm Lab Res Tes Levels Raised 28 | . 1 1 3 2 4 1 2 1 1 . 2 1 1 . . 1 1 . . . 2 1 . 1 1 1 XP Earned 45335 | 3000 2306 1378 5294 2872 5106 2153 3146 1289 549 118 2805 1722 1622 580 218 952 909 474 663 262 1769 1455 503 1126 1986 1078 XP Spent 44920 | 3000 . 800 6700 2800 3970 3400 800 3915 . 1260 3100 520 . 1430 . . . 3900 . . . . 1640 3080 725 3880 Upgrades 91 | 10 . 1 15 7 11 2 1 9 . 4 4 2 . 4 . . . 3 . . . . 5 3 3 7 Power Slot 1 | . . . . 1 . . . . . . . . . . . . . . . . . . . . . . Propulsion Slot 5 | 1 . . . 2 . . . . . . . . . . . . . . . . . . 1 . . 1 Utility Slot 9 | 1 . 1 2 . 1 1 . 1 . . . . . . . . . 1 . . . . . 1 . . Weapon Slot 4 | 1 . . 2 . . 1 . . . . . . . . . . . . . . . . . . . . Core Integrity 12 | . . . . . . . . 2 . . . . . . . . . . . . . . 4 2 . 4 Heat Dissipation 15 | 1 . . . 4 2 . . 3 . . . 2 . 3 . . . . . . . . . . . . Mass Support 9 | 2 . . 1 . . . . 1 . . . . . 1 . . . 2 . . . . . . . 2 Inventory Capacity 4 | 2 . . . . . . . . . 1 1 . . . . . . . . . . . . . . . Sight Range 1 | . . . . . . . . . . . . . . . . . . . . . . . . . 1 . Sensor Range 12 | . . . 8 . . . . 2 . . . . . . . . . . . . . . . . 2 . Terrain Scan Density 8 | . . . . . 5 . . . . 3 . . . . . . . . . . . . . . . . Ranged Accuracy 4 | . . . 2 . . . . . . . 2 . . . . . . . . . . . . . . . Hack Attack % 4 | 1 . . . . 2 . . . . . 1 . . . . . . . . . . . . . . . Hack Defense % 3 | 1 . . . . 1 . 1 . . . . . . . . . . . . . . . . . . . Protomatter Created 6606 | . 251 59 268 297 438 251 293 401 101 . 507 672 540 82 . 283 289 384 258 . 190 457 235 164 148 38 Integrity Restored 14383 | . 481 134 499 803 961 383 492 1144 299 . 1674 1414 721 638 310 410 567 1003 118 105 278 586 329 492 428 114 Core 11372 | . 407 96 452 711 666 314 415 925 248 . 1592 757 556 518 172 325 567 704 90 65 219 583 183 492 201 114 Parts 3011 | . 74 38 47 92 295 69 77 219 51 . 82 657 165 120 138 85 . 299 28 40 59 3 146 . 227 . Protomatter Decayed 7268 | . 85 12 82 69 142 384 171 126 . . 17 194 944 265 63 746 50 116 151 1018 119 171 164 75 1981 123 Game ------ Seed ImpulseAdvancedMagmablaster Manual? 0 Play Time 04:02:44 Cumulative 98.3 hours Start 2019.12.19 @ 12:01:31 End 2019.12.19 @ 16:07:59 Sessions 1 Manual Loads 0 Difficulty Rogue Special Mode Winter2019/RPGLIKE Game No. 199 Rogue 199 Adventurer 0 Explorer 0 Win Type - Total 1 Types 1/0/0/0/0/0/0 Lore% 82 Gallery% 74 Achievement% 60 Wizard Run 0 Options --------- ASCII 0 Keyboard 0 Movement Numpad Keybinds 0 Fullscreen 1 Font 24/Smallcaps Map View 76x50 Tactical HUD 1 Map Filters NONE Filters NONE Steam 1 RUN: 0f5c466b-9dcb-4dc3-8dee-71cde26ef72a